bitfinex/quotes_SOLUSD_20251001
["timestamp","ask_amount","ask_price","bid_price","bid_amount"]
[1759299049380,4.7835446,209.05,209.03,33.88]
[1759299051267,19.03913861,209.05,209.04,37.3]
[1759299051679,19.03913861,209.05,209.04,71.14]
[1759299052176,20.57194984,209.05,209.04,37.3]
[1759299052383,20.57194984,209.05,209.04,71.14]
[1759299056091,19.03913861,209.05,209.04,71.14]
[1759299056290,20.57194984,209.05,209.04,71.14]
[1759299056587,18.37913861,209.05,209.04,71.14]
[1759299058369,19.02913861,209.05,209.04,37.3]
[1759299058572,19.02913861,209.05,209.04,71.14]
[1759299060981,20.56194984,209.05,209.04,71.14]
[1759299061303,20.56194984,209.05,209.04,71.12]
[1759299065104,19.02913861,209.05,209.04,71.12]
[1759299065306,18.37913861,209.05,209.04,71.12]
[1759299069188,18.37913861,209.05,209.04,71.82]
[1759299070704,18.37913861,209.05,209.04,71.12]
[1759299071890,18.37913861,209.05,209.04,71.82]
[1759299076985,13.59559401,209.05,209.04,71.82]
[1759299077541,18.37913861,209.05,209.04,71.82]
[1759299078019,18.37913861,209.05,209.04,71.12]
[1759299079214,18.37913861,209.05,209.04,71.78]
[1759299081211,18.37913861,209.05,209.04,71.12]
[1759299081403,18.37913861,209.05,209.04,71.78]
[1759299084415,18.37913861,209.05,209.04,71.12]
[1759299086899,19.06913861,209.05,209.04,37.3]
[1759299087102,21.26566701,209.05,209.04,70.96]
[1759299087813,19.06913861,209.05,209.04,70.96]
[1759299089897,18.37913861,209.05,209.04,70.96]
[1759299090199,19.06913861,209.05,209.04,70.96]
[1759299090823,21.26566701,209.05,209.04,37.3]
[1759299091014,13.59559401,209.04,208.96,0.67]
[1759299091328,18.38074091,208.98,208.97,70.96]
[1759299093700,18.38074091,208.98,208.97,71.63]
[1759299095418,13.59559401,209.0,208.97,71.63]
[1759299095622,13.59559401,209.0,208.98,0.67]
[1759299095798,13.59559401,209.0,208.99,34.33]
[1759299097324,18.380283,209.0,208.99,34.33]
[1759299098424,18.380283,209.0,208.99,33.66]
[1759299102640,18.380283,209.0,208.99,34.33]
[1759299104953,18.380283,209.0,208.99,33.66]
[1759299108723,18.380283,209.0,208.99,34.33]
[1759299112339,18.380283,209.0,208.99,33.66]
[1759299112340,19.070283,209.0,208.99,33.66]
[1759299112558,33.22853388,209.0,208.99,33.66]
[1759299112740,33.51285702,209.0,208.99,33.66]
[1759299112926,33.51285702,209.0,208.97,37.3]
[1759299113241,13.59559401,208.97,208.89,0.72]
[1759299113455,13.59559401,208.94,208.9,37.3]
[1759299113630,13.59559401,208.94,208.91,0.72]
[1759299114032,13.59559401,208.94,208.92,33.66]
[1759299114842,18.38188606,208.93,208.92,33.66]
[1759299115444,4.78606005,208.95,208.92,34.38]
[1759299115659,4.78606005,208.95,208.93,0.72]
[1759299115953,18.38165406,208.95,208.94,34.38]
[1759299116158,18.38165406,208.95,208.94,33.66]
[1759299116354,19.06165406,208.95,208.94,33.66]
[1759299116923,18.38165406,208.95,208.94,33.66]
[1759299118857,19.06165406,208.95,208.94,33.66]
[1759299120465,18.38165406,208.95,208.94,33.66]
[1759299121439,19.06165406,208.95,208.94,33.66]
[1759299121956,18.38165406,208.95,208.94,33.66]
[1759299122338,0.28432314,208.93,208.9,37.3]
[1759299122596,16.07644555,208.91,208.9,37.3]
[1759299122738,16.75644555,208.91,208.9,70.96]
[1759299124434,21.54319582,208.91,208.9,70.96]
[1759299124631,18.38234428,208.91,208.9,70.96]
[1759299124958,18.38234428,208.91,208.9,71.68]
[1759299125973,13.59559401,208.95,208.9,71.68]
[1759299126136,13.59559401,208.95,208.91,0.72]
[1759299126350,13.59559401,208.95,208.92,34.4]
[1759299126556,4.78606298,208.94,208.93,33.68]
[1759299144791,5.48606298,208.94,208.93,33.68]
[1759299144989,4.78606298,208.94,208.93,33.68]
[1759299145160,4.78606298,208.94,208.93,71.0]
[1759299145561,18.38165699,208.94,208.93,71.66]
[1759299146466,18.38165699,208.94,208.93,71.0]
[1759299146665,18.38165699,208.94,208.93,71.66]
[1759299147002,13.59559401,208.95,208.93,71.66]
[1759299147298,63.48582559,208.96,208.94,0.66]
[1759299147299,13.59559401,208.96,208.94,0.66]
[1759299147496,13.59559401,208.96,208.95,33.66]
[1759299147673,18.38119891,208.96,208.95,34.32]
[1759299149396,18.38119891,208.96,208.95,33.66]
[1759299149698,32.45271605,208.96,208.95,33.66]
[1759299150002,32.45271605,208.96,208.95,70.98]
[1759299155020,30.34521116,208.96,208.95,70.98]
[1759299155234,18.38119891,208.96,208.95,71.64]
[1759299156522,18.38119891,208.96,208.95,70.98]
[1759299157093,18.38119891,208.96,208.95,71.64]
[1759299158993,18.38119891,208.96,208.95,37.32]
[1759299159198,18.38119891,208.96,208.95,70.98]
[1759299162028,18.38119891,208.96,208.95,71.64]
[1759299164098,18.38119891,208.96,208.95,70.98]
[1759299166619,18.38119891,208.96,208.95,71.64]
[1759299166925,18.38119891,208.96,208.95,70.98]
[1759299169234,0.7,208.98,208.95,71.64]
[1759299169235,13.59559401,208.97,208.95,71.64]
[1759299169427,13.59559401,208.97,208.96,0.66]
[1759299170334,13.59559401,208.97,208.95,71.64]
[1759299170533,4.7856049,208.96,208.95,71.64]
[1759299171833,4.78537589,208.97,208.95,71.64]
[1759299178145,5.48537589,208.97,208.95,70.98]
[1759299179533,18.38119891,208.96,208.95,70.98]
[1759299180877,18.38119891,208.96,208.95,70.96]
[1759299181345,19.08119891,208.96,208.95,70.96]
[1759299181531,18.38119891,208.96,208.95,70.96]
[1759299182149,18.38119891,208.96,208.95,71.63]
[1759299182358,18.38119891,208.96,208.95,37.99]
[1759299182532,18.38119891,208.96,208.95,71.63]
[1759299183481,18.38119891,208.96,208.95,70.96]
[1759299184079,18.38119891,208.96,208.95,71.63]
[1759299189811,18.38119891,208.96,208.95,37.32]
[1759299190312,15.77291298,209.01,208.95,37.32]
[1759299190313,14.36540809,209.01,208.95,37.32]
[1759299190508,4.78331579,209.06,208.95,37.32]
[1759299190810,13.59559401,209.05,208.95,37.32]
[1759299191011,13.59559401,209.05,208.96,33.64]
[1759299191310,13.59559401,209.01,208.95,37.32]
[1759299191478,13.59559401,209.01,208.96,33.64]
[1759299191802,13.59559401,208.99,208.96,33.64]
[1759299193888,18.38059918,208.99,208.96,33.64]
[1759299201412,18.38059918,208.99,208.95,37.32]
[1759299201639,18.38059918,208.99,208.96,33.64]
[1759299204961,14.36334474,209.02,208.96,33.64]
[1759299205121,58.7,209.03,208.97,0.66]
[1759299205320,58.7,209.03,208.98,33.64]
[1759299206043,58.7,209.03,208.99,0.66]
[1759299206236,58.7,209.03,209.0,33.64]
[1759299206436,4.7839921,209.04,209.0,33.64]
[1759299206627,4.78359346,209.05,209.0,34.3]
[1759299206818,13.59559401,209.06,209.0,34.3]
[1759299207019,13.59559401,209.08,209.01,0.66]
[1759299207235,13.59559401,209.08,209.02,33.64]
[1759299208132,4.783087,209.07,209.02,33.64]
[1759299208331,4.783087,209.07,209.02,34.3]
[1759299208545,4.783087,209.07,209.02,39.08421982]
[1759299208940,4.78289469,209.08,209.02,38.42421982]
[1759299209246,4.78289469,209.08,209.02,39.08421982]
[1759299210735,4.78289469,209.08,209.02,38.42421982]
[1759299211239,4.78263653,209.09,209.03,0.66]
[1759299212150,4.78240076,209.1,209.03,5.44388125]
[1759299215048,5.45240076,209.1,209.03,5.44388125]
[1759299215561,4.78240076,209.1,209.04,5.44373071]
[1759299215765,13.59559401,209.11,209.05,34.28]
[1759299216066,18.37780869,209.11,209.05,34.28]
[1759299216260,18.37780869,209.11,209.05,33.62]
[1759299216554,13.59559401,209.11,209.05,34.28]
[1759299216936,18.37780948,209.11,209.05,34.28]
[1759299217742,18.37780948,209.11,209.05,39.0635419]
[1759299218171,0.67,209.1,209.06,33.62]
[1759299218469,0.67,209.09,209.06,33.62]
[1759299219667,4.78254792,209.1,209.06,34.28]
[1759299220026,4.78254792,209.1,209.06,33.62]
[1759299220466,0.67,209.09,209.07,33.62]
[1759299220635,0.67,209.08,209.0,4.7846544]
[1759299220958,0.67,209.07,209.01,33.62]
[1759299221153,0.67,209.07,209.02,33.6]
[1759299221354,0.67,209.06,209.02,33.6]
[1759299222462,0.67,209.06,209.0,5.4446544]
[1759299222463,4.78347546,209.06,209.03,33.6]
[1759299223363,5.45347546,209.06,209.03,33.6]
[1759299224332,5.45285823,209.08,209.03,33.6]
[1759299225133,17.41000382,209.08,209.03,33.6]
[1759299225459,0.67,209.07,209.03,33.6]
[1759299225671,0.67,209.06,209.03,33.6]
[1759299225876,0.67,209.05,209.01,20.8]
[1759299226170,0.67,209.05,209.04,33.6]
[1759299226345,13.59559401,209.07,209.04,33.6]
[1759299226942,4.7835446,209.05,209.04,33.6]
[1759299227155,5.4535446,209.05,209.04,33.6]
[1759299227660,4.7835446,209.05,209.04,33.6]
[1759299228041,4.78330642,209.07,209.04,34.26]
[1759299228355,5.45330642,209.07,209.04,33.6]
[1759299228566,4.78330642,209.07,209.04,33.6]
[1759299228743,0.67,209.06,209.04,33.6]
[1759299229054,5.45340491,209.06,209.04,33.6]
[1759299229956,4.78340491,209.06,209.04,33.6]
[1759299231572,11.95667413,209.09,209.04,33.6]
[1759299231742,0.67,209.07,209.04,33.6]
[1759299232843,4.78331579,209.06,209.05,37.3]
[1759299236766,13.59559401,209.08,209.05,37.3]
[1759299236968,0.7,209.07,209.06,33.6]
[1759299237771,13.59559401,209.08,209.06,33.6]
[1759299238060,14.29559401,209.08,209.06,33.6]
[1759299238649,4.783087,209.07,209.06,33.6]
[1759299245297,4.78242541,209.1,209.06,34.29]
[1759299245581,4.78242541,209.1,209.06,33.6]
[1759299245797,5.48242541,209.1,209.06,34.29]
[1759299247467,16.73702949,209.12,209.06,33.6]
[1759299247668,17.43702949,209.12,209.07,0.69]
[1759299247868,17.43702949,209.12,209.08,33.6]
[1759299248365,0.7,209.11,209.08,33.6]
[1759299249697,0.7,209.1,209.08,33.6]
[1759299249874,5.48262948,209.09,209.05,37.3]
[1759299250069,0.7,209.08,209.06,33.58]
[1759299250892,13.59559401,209.11,209.06,33.58]
[1759299251093,0.7,209.1,209.06,33.58]
[1759299251292,0.7,209.09,209.05,37.3]
[1759299251470,0.7,209.09,209.06,33.58]
[1759299251996,4.78240076,209.1,209.06,33.58]
[1759299252291,17.43840267,209.1,209.06,33.58]
[1759299252486,17.43840267,209.1,209.06,34.27]
[1759299254091,4.78285823,209.08,209.06,33.58]
[1759299254599,16.74000382,209.08,209.05,37.3]
[1759299254803,0.7,209.07,209.05,37.3]
[1759299255098,0.7,209.07,209.06,33.58]
[1759299255284,16.74000382,209.08,209.06,33.58]
[1759299256000,5.483087,209.07,209.06,33.58]
[1759299256896,5.483087,209.07,209.05,37.3]
[1759299256897,13.59559401,209.06,209.05,37.3]
[1759299257096,14.29559401,209.06,209.05,70.88]
[1759299257878,19.0789098,209.06,209.05,70.88]
[1759299266319,32.44340474,209.06,208.96,20.8]
[1759299266618,0.67,209.05,208.98,0.7]
[1759299267599,13.59559401,209.03,208.99,33.58]
[1759299267805,14.26559401,209.03,208.99,33.58]
[1759299268409,13.59559401,209.03,208.99,33.58]
[1759299268589,13.59559401,209.01,208.99,34.28]
[1759299269324,13.59559401,209.01,208.99,33.58]
[1759299269798,13.59559401,209.01,209.0,37.3]
[1759299271514,18.38005408,209.01,209.0,37.3]
[1759299272014,19.05005408,209.01,209.0,37.3]
[1759299273188,19.05005408,209.01,209.0,70.88]
[1759299275290,18.38005408,209.01,209.0,70.88]
[1759299276613,19.05005408,209.01,209.0,70.88]
[1759299278611,33.41271117,209.01,209.0,70.88]
[1759299283093,32.74271117,209.01,209.0,70.88]
[1759299288015,33.41271117,209.01,209.0,70.88]
[1759299288731,33.41271117,209.01,209.0,37.3]
[1759299288732,34.81891663,209.01,209.0,37.3]
[1759299288900,33.41271117,209.01,209.0,70.86]
[1759299289325,32.74271117,209.01,209.0,70.86]
[1759299289905,32.74271117,209.01,209.0,71.56]
[1759299290104,18.38005408,209.01,209.0,71.56]
[1759299290507,18.38005408,209.01,209.0,70.86]
[1759299296430,19.06005408,209.01,209.0,70.86]
[1759299297226,18.38005408,209.01,209.0,70.86]
[1759299297606,19.06005408,209.01,209.0,70.86]
[1759299298431,18.38005408,209.01,209.0,70.86]
[1759299299819,19.06005408,209.01,209.0,70.86]
[1759299300022,18.38005408,209.01,209.0,70.86]
[1759299300621,18.38005408,209.01,209.0,71.54]
[1759299301215,18.38005408,209.01,209.0,70.86]
[1759299304651,19.06005408,209.01,209.0,70.86]
[1759299304849,19.06005408,209.01,209.0,37.3]
[1759299305043,20.46625954,209.01,209.0,70.86]
[1759299305238,34.830292,209.01,209.0,70.86]
[1759299305946,33.42408654,209.01,209.0,70.86]
[1759299308350,33.42408654,209.01,209.0,37.3]
[1759299308653,33.42408654,209.01,209.0,70.84]
[1759299309639,32.74408654,209.01,209.0,70.84]
[1759299310536,18.38005408,209.01,209.0,70.84]
[1759299313743,32.74133606,209.01,209.0,70.84]
[1759299314960,32.74133606,209.01,209.0,37.3]
[1759299314961,33.42133606,209.01,209.0,37.3]
[1759299315147,34.82754152,209.01,209.0,37.3]
[1759299315340,34.82754152,209.01,209.0,70.84]
[1759299315341,33.42133606,209.01,209.0,70.84]
[1759299317460,32.74133606,209.01,209.0,71.52]
[1759299317767,18.38005408,209.01,209.0,71.52]
[1759299318064,18.38005408,209.01,209.0,70.84]
[1759299322852,19.04005408,209.01,209.0,70.84]
[1759299323654,33.40133606,209.01,209.0,70.84]
[1759299324868,34.80754152,209.01,209.0,37.3]
[1759299325079,34.80754152,209.01,209.0,70.84]
[1759299325454,46.7686917,209.01,208.91,21.48]
[1759299325769,13.59559401,208.99,208.92,0.68]
[1759299325952,15.00179947,208.99,208.92,0.68]
[1759299326148,13.59559401,208.97,208.92,0.68]
[1759299326555,16.74961715,208.96,208.93,33.54]
[1759299327170,16.74961715,208.96,208.93,34.22]
[1759299329281,16.74961715,208.96,208.84,5.33535946]
[1759299329282,14.28559401,208.95,208.84,5.33535946]
[1759299329485,16.48421718,208.95,208.85,0.68]
[1759299329790,13.59559401,208.91,208.83,0.68]
[1759299329962,13.59559401,208.91,208.86,37.3]
[1759299330285,15.05884833,208.9,208.87,33.54]
[1759299330585,14.28559401,208.89,208.87,33.54]
[1759299330788,13.59559401,208.89,208.87,33.54]
[1759299331287,18.38303177,208.88,208.87,33.54]
[1759299332091,32.7518801,208.88,208.87,33.54]
[1759299332784,14.36884833,208.88,208.87,34.22]
[1759299332956,4.7871875,208.9,208.87,33.54]
[1759299333162,19.84603583,208.9,208.87,33.54]
[1759299333464,13.59559401,208.89,208.87,33.54]
[1759299334488,19.15603583,208.9,208.88,0.68]
[1759299334700,18.38278151,208.9,208.89,33.54]
[1759299335154,13.59559401,208.9,208.89,33.54]
[1759299335888,18.38257342,208.9,208.89,33.54]
[1759299336587,19.07257342,208.9,208.89,33.54]
[1759299337674,18.38298487,208.89,208.86,37.3]
[1759299337883,18.38298487,208.89,208.87,33.54]
[1759299340657,13.59559401,208.89,208.87,33.54]
[1759299340962,13.59559401,208.89,208.87,34.22]
[1759299342258,13.59559401,208.89,208.87,33.54]
[1759299342678,13.59559401,208.91,208.88,0.68]
[1759299342864,13.59559401,208.94,208.89,33.54]
[1759299343373,13.59559401,208.94,208.9,0.68]
[1759299343582,13.59559401,208.94,208.91,34.22]
[1759299343778,13.59559401,208.94,208.92,33.54]
[1759299343968,0.69,208.94,208.92,33.54]
[1759299345256,0.69,208.93,208.92,33.54]
[1759299345457,13.59559401,208.94,208.92,33.54]
[1759299346281,18.38170865,208.94,208.92,33.54]
[1759299346782,13.59559401,208.92,208.89,20.8]
[1759299346990,0.69,208.92,208.9,33.54]
[1759299347181,13.59559401,208.93,208.9,33.54]
[1759299347386,13.59559401,208.93,208.9,34.22]
[1759299348192,13.59559401,208.93,208.9,33.54]
[1759299348374,13.59559401,208.93,208.9,34.22]
[1759299349086,18.38193945,208.93,208.9,34.22]
[1759299349994,0.69,208.92,208.89,20.8]
[1759299350303,13.59559401,208.9,208.86,37.3]
[1759299350591,15.79421718,208.87,208.84,37.32]
[1759299350894,13.59559401,208.84,208.77,0.1]
[1759299351072,2.19862317,208.81,208.78,13.24]
[1759299351268,13.59559401,208.79,208.78,13.24]
[1759299351483,14.28559401,208.79,208.78,13.24]
[1759299351884,14.28559401,208.79,208.77,0.1]
[1759299352086,19.07509542,208.79,208.78,33.52]
[1759299359498,14.19543792,208.79,208.78,33.54]
[1759299359874,14.19543792,208.79,208.78,70.88]
[1759299360493,4.7892939,208.8,208.78,70.88]
[1759299361388,18.38463668,208.81,208.78,70.88]
[1759299361586,19.09463668,208.81,208.78,70.88]
[1759299361987,18.38463668,208.81,208.78,70.88]
[1759299363610,4.78876718,208.83,208.79,0.72]
[1759299363909,13.59559401,208.82,208.78,70.88]
[1759299364090,13.59559401,208.82,208.78,71.6]
[1759299365379,18.38454077,208.82,208.78,71.6]
[1759299366184,13.59559401,208.83,208.79,0.72]
[1759299366798,13.59559401,208.83,208.8,0.72]
[1759299367003,13.59559401,208.83,208.81,33.54]
[1759299367203,13.59559401,208.83,208.81,34.26]
[1759299367378,18.38419321,208.83,208.81,33.54]
[1759299368194,13.59559401,208.84,208.81,34.26]
[1759299368581,13.59559401,208.84,208.81,33.54]
[1759299369002,13.59559401,208.84,208.81,34.26]
[1759299369205,4.78858401,208.83,208.81,34.26]
[1759299369388,4.78858401,208.83,208.81,33.54]
[1759299369794,18.38397729,208.84,208.81,33.54]
[1759299370108,19.09397729,208.84,208.81,33.54]
[1759299375005,18.38397729,208.84,208.81,33.54]
[1759299375210,19.09397729,208.84,208.81,33.54]
[1759299376800,0.71,208.83,208.81,33.54]
[1759299377109,19.09397729,208.84,208.81,33.54]
[1759299377308,19.09397729,208.84,208.79,0.72]
[1759299377491,19.09397729,208.84,208.8,33.54]
[1759299378103,0.71,208.87,208.8,33.54]
[1759299378311,0.71,208.9,208.81,0.72]
[1759299378811,13.59559401,208.88,208.82,4.78881333]
[1759299379017,13.59559401,208.88,208.83,34.26]
[1759299379194,14.28559401,208.88,208.83,33.54]
[1759299379395,4.7870223,208.9,208.84,0.72]
[1759299380715,4.7870223,208.9,208.85,4.78812544]
[1759299380921,13.59559401,208.94,208.86,34.24]
[1759299381110,0.69,208.98,208.89,20.8]
[1759299381310,0.69,208.97,208.9,34.24]
[1759299381603,13.59559401,208.96,208.91,0.72]
[1759299381809,13.59559401,208.96,208.92,0.72]
[1759299382112,0.69,208.97,208.93,33.52]
[1759299382113,13.59559401,208.97,208.93,33.52]
[1759299382295,14.28559401,208.97,208.93,33.52]
[1759299382899,4.7855814,208.97,208.93,33.52]
[1759299383216,13.59559401,208.96,208.93,33.52]
[1759299384200,14.26559401,208.95,208.94,33.52]
[1759299384623,14.26559401,208.95,208.89,20.8]
[1759299384824,13.59559401,208.93,208.9,33.52]
[1759299385022,18.3820937,208.93,208.9,33.52]
[1759299385397,19.0520937,208.93,208.9,33.52]
[1759299387715,19.0520937,208.93,208.91,37.32]
[1759299389029,18.3820937,208.93,208.91,37.32]
[1759299389613,19.0520937,208.93,208.91,37.32]
[1759299390228,18.3820937,208.93,208.91,37.32]
[1759299390729,13.59559401,208.96,208.91,38.03]
[1759299391030,19.05051194,208.99,208.92,0.71]
[1759299391202,19.05051194,208.99,208.93,33.52]
[1759299391405,13.59559401,208.97,208.93,33.52]
[1759299391705,0.67,208.97,208.93,33.52]
[1759299392527,5.45548501,208.97,208.93,33.52]
[1759299392715,5.45548501,208.97,208.93,34.23]
[1759299394325,5.45548501,208.97,208.93,33.52]
[1759299395025,13.59559401,208.95,208.93,33.52]
[1759299395324,14.26559401,208.95,208.93,33.52]
[1759299396710,0.67,208.94,208.93,33.52]
[1759299397129,4.78606298,208.94,208.93,33.52]
[1759299397801,4.78606298,208.94,208.91,37.32]
[1759299398001,5.45606298,208.94,208.92,33.5]
[1759299399133,18.38146195,208.95,208.92,33.5]
[1759299402840,19.05146195,208.95,208.92,33.5]
[1759299406237,19.05146195,208.95,208.91,37.32]
[1759299406455,13.59559401,208.93,208.91,37.32]
[1759299406746,0.67,208.93,208.92,33.5]
[1759299407747,5.45629205,208.93,208.92,33.5]
[1759299409929,18.38169176,208.94,208.92,33.5]
[1759299410131,19.05169176,208.94,208.92,33.5]
[1759299410936,18.38169176,208.94,208.92,33.5]
[1759299411339,19.05169176,208.94,208.92,33.5]
[1759299411846,13.59559401,208.95,208.92,34.21]
[1759299412147,0.67,208.95,208.92,33.5]
[1759299412822,4.78581923,208.96,208.92,33.5]
[1759299413022,4.78581923,208.96,208.92,34.21]
[1759299413342,5.45581923,208.96,208.92,34.21]
[1759299414545,4.78581923,208.96,208.92,33.5]
[1759299414846,4.78581923,208.96,208.93,0.7]
[1759299415053,4.78581923,208.96,208.94,33.5]
[1759299415248,5.49581923,208.96,208.94,33.5]
[1759299415941,18.3809699,208.97,208.94,33.5]
[1759299416154,19.0909699,208.97,208.94,33.5]
[1759299417032,0.71,208.96,208.94,33.5]
[1759299418049,20.8,208.95,208.94,33.5]
[1759299420042,20.8,208.94,208.93,0.7]
[1759299420232,4.78493017,208.99,208.94,0.7]
[1759299420432,19.85991803,209.01,208.95,33.5]
[1759299420644,4.78450994,209.01,208.96,0.7]
[1759299420923,4.78450994,209.01,208.97,33.5]
[1759299420924,20.8,208.99,208.97,33.5]
[1759299421228,20.8,208.99,208.97,34.2]
[1759299421430,20.8,208.99,208.98,0.7]
[1759299421631,4.78419587,209.03,208.98,0.7]
[1759299421831,20.8,209.02,208.99,34.2]
[1759299422035,19.0893902,209.04,209.0,0.7]
[1759299422337,19.0893902,209.04,209.01,33.5]
[1759299423015,0.2,209.05,209.02,0.7]
[1759299423255,0.2,209.05,209.03,0.7]
[1759299423428,0.2,209.05,209.04,33.48]
[1759299423626,0.2,209.05,209.04,34.18]
[1759299424255,0.2,209.05,209.04,38.96377344]
[1759299425858,0.2,209.05,209.04,34.18]
[1759299426033,0.2,209.05,209.04,38.96377344]
[1759299426631,0.2,209.05,209.04,59.76377344]
[1759299428278,0.2,209.05,209.04,39.24809658]
[1759299428488,0.2,209.11,209.05,0.14216157]
[1759299428669,1e-08,209.14,209.05,0.14216157]
[1759299428670,1e-08,209.14,209.12,20.8]
[1759299428872,1e-08,209.14,209.13,70.78]
[1759299429180,1e-08,209.14,209.13,71.06432314]
[1759299429477,1e-08,209.14,209.13,71.63432314]
[1759299430679,1e-08,209.14,209.13,76.41603786]
[1759299432177,1e-08,209.14,209.13,37.3]
[1759299432462,1e-08,209.14,209.13,71.33]
[1759299433372,1e-08,209.14,209.13,70.76]
[1759299435772,1e-08,209.14,209.13,76.11171472]
[1759299436795,1e-08,209.14,209.13,75.54171472]
[1759299438793,1e-08,209.14,209.13,76.11171472]
[1759299438995,1e-08,209.14,209.13,76.39603786]
[1759299439387,1e-08,209.14,209.13,76.87420933]
[1759299440074,1e-08,209.14,209.13,76.39603786]
[1759299442578,1e-08,209.14,209.13,42.36603786]
[1759299442787,1e-08,209.14,209.13,75.80603786]
[1759299443004,1e-08,209.14,209.13,76.37603786]
[1759299443386,1e-08,209.14,209.13,113.65603786]
[1759299446100,1e-08,209.14,209.13,119.26116996]
[1759299446979,0.2,209.19,209.16,20.8]
[1759299447292,0.2,209.19,209.18,0.28432314]
[1759299447684,0.2,209.19,209.18,0.85432314]
[1759299448699,0.2,209.19,209.18,5.63489489]
[1759299450082,0.2,209.19,209.18,11.24002699]
[1759299450587,0.2,209.19,209.18,10.67002699]
[1759299451190,0.2,209.19,209.18,14.417316]
[1759299451508,0.2,209.19,209.18,47.857316]
[1759299453601,0.2,209.19,209.18,48.427316]
[1759299455395,0.2,209.21,209.19,5.6051321]
[1759299455578,0.2,209.21,209.2,38.22011472]
[1759299455782,0.2,209.21,209.2,38.79011472]
[1759299456199,0.2,209.21,209.2,38.22011472]
[1759299456404,0.2,209.21,209.2,38.79011472]
[1759299457411,0.2,209.21,209.2,38.50443786]
[1759299457715,0.2,209.21,209.2,39.07443786]
[1759299458085,0.2,209.21,209.2,38.50443786]
[1759299458312,0.2,209.21,209.2,39.07443786]
[1759299458889,0.2,209.21,209.2,5.06443786]
[1759299459216,0.91,209.21,209.2,38.50443786]
[1759299459785,0.2,209.21,209.2,38.50443786]
[1759299459991,1e-08,209.21,209.2,50.02726533]
[1759299461326,1e-08,209.21,209.2,49.45726533]
[1759299461618,1e-08,209.21,209.2,50.02726533]
[1759299463034,1e-08,209.21,209.2,49.45726533]
[1759299463194,1e-08,209.21,209.2,50.02726533]
[1759299463896,1e-08,209.22,209.21,0.28432314]
[1759299464108,1e-08,209.22,209.21,6.45945524]
[1759299464648,0.91,209.26,209.22,13.87991715]
[1759299464649,1e-08,209.24,209.22,13.87991715]
[1759299464953,1e-08,209.24,209.23,33.70432314]
[1759299465313,1e-08,209.24,209.23,38.48375247]
[1759299465518,1e-08,209.24,209.23,39.05375247]
[1759299465931,0.2,209.27,209.26,21.08432314]
[1759299466249,0.2,209.27,209.26,54.50432314]
[1759299466425,1e-08,209.27,209.26,54.50432314]
[1759299466825,0.71000001,209.27,209.26,54.50432314]
[1759299467146,1e-08,209.27,209.26,54.50432314]
[1759299467518,1e-08,209.27,209.26,59.28306728]
[1759299469637,0.71000001,209.27,209.26,96.52306728]
[1759299470028,1e-08,209.27,209.26,96.52306728]
[1759299471437,0.71000001,209.27,209.26,96.52306728]
[1759299471637,1e-08,209.27,209.26,96.52306728]
[1759299471821,1e-08,209.27,209.26,63.10306728]
[1759299472023,1e-08,209.27,209.26,96.52306728]
[1759299473846,0.72000001,209.27,209.26,96.52306728]
[1759299474921,1e-08,209.27,209.26,133.76306728]